Cogmind - Beta 12 @@@ ROGUE MODE // 2023.04.06 @ 20:16:56 Player: deepledi Result: Destroyed by G-34 Mercenary with Small Laser Performance ------------- Evolutions (1) 500 Regions Visited (2) 400 Robots Destroyed (34) 170 Value Destroyed (714) 714 Prototype IDs (3) 60 Alien Tech Used (0) 0 Bonus (42) 42 TOTAL SCORE: 1886 Bonus ------- High Alert Combat Kills 42 Cogmind --------- Core Integrity 0/400 Matter 277/300 Energy 98/100 System Corruption 1% Temperature Cool (13) Movement Treading (240) Ox1 Location -9/Materials Parts ------- > --- POWER (1) -------- (None) > --- PROPULSION (2) --- Light Treads > --- UTILITY (4) ------ Heat Sink Large Storage Unit Signal Interpreter > --- WEAPON (2) ------- Mining Claw > --- INVENTORY (15) --- Improved Ion Engine Cooled Ion Engine Light Treads Compact Wheel Large Storage Unit Weapon Shielding Shield Generator Peak State ------------ > --- POWER ------------ Cooled Ion Engine > --- PROPULSION ------- Light Treads Armored Wheel > --- UTILITY ---------- Heat Sink Small Storage Unit Light Armor Plating Hacking Suite > --- WEAPON ----------- Improved EM Shotgun Improved EM Shotgun > --- INVENTORY -------- Light Ion Engine Improved Ion Engine Light Treads Light Treads Compact Wheel EM Pulse Gun Assault Rifle Mining Claw [Rating: 18] Favorites ----------- Power Ion Engine Engine Ion Engine Propulsion Light Treads Treads Light Treads Wheel Compact Wheel Utility Small Storage Unit Device Heat Sink Storage Small Storage Unit Processor Signal Interpreter Hackware Hacking Suite Protection Light Armor Plating Weapon Assault Rifle Energy Gun Improved EM Shotgun Ballistic Gun Assault Rifle Slashing Weapon Mining Claw Build | -11 -10 -9 ------- Run | Jun Mat Mat Slots Evolved 2 | . . 2 Power . | . . . Propulsion . | . . . Utility 2 | . . 2 Weapon . | . . . Parts Attached 27 | 7 1 19 Power 4 | 1 . 3 Engine 4 | 1 . 3 Core . | . . . Reactor . | . . . Propulsion 6 | 2 . 4 Treads 4 | 1 . 3 Leg . | . . . Wheel 2 | 1 . 1 Hover . | . . . Flight . | . . . Utility 9 | 1 1 7 Device 2 | . 1 1 Storage 2 | 1 . 1 Processor 1 | . . 1 Hackware 1 | . . 1 Protection 3 | . . 3 Artifact . | . . . Weapon 8 | 3 . 5 Energy Gun 4 | 1 . 3 Energy Cannon . | . . . Ballistic Gun 3 | 2 . 1 Ballistic Cannon . | . . . Launcher . | . . . Special Weapon . | . . . Impact Weapon . | . . . Slashing Weapon 1 | . . 1 Piercing Weapon . | . . . Special Melee Weapon . | . . . Unidentified Prototypes 3 | . . 3 Corrupted Parts 1 | . . 1 System Corruption 1 | . . 1 Parts Lost 10 | . . 10 Power 1 | . . 1 Propulsion 2 | . . 2 Utility 3 | . . 3 Weapon 4 | . . 4 Highest Loss Streak 7 | . . 7 To Critical Strikes . | . . . Average Slot Usage (%) 97 | . 100 96 Engine 11 | . 14 11 Treads 11 | . 14 10 Wheel 11 | . 14 10 Device 11 | . 14 10 Storage 11 | . 14 11 Processor 2 | . . 2 Hackware 8 | . . 10 Protection 5 | . . 6 Energy Gun 10 | . . 12 Ballistic Gun 11 | . 28 8 Naked Turns . | . . . Heaviest Build 34 | 14 14 34 Greatest Support 20 | 16 16 20 Greatest Overweight (x) 3 | 3 . 2 Average Overweight (x) . | . . . Largest Inventory Capacity 15 | 8 8 15 Average Capacity 8 | 7 8 9 Most Carried 10 | 7 7 10 Average Carried 6 | 4 5 7 Final Capacity 15 | 8 8 15 Final Carried 7 | 5 7 7 Class Distribution -------------------- 69% | Mutant 30% | Scavenger-Mutant Dominant Class ---------------- Mutant | -10/Materials Mutant | -9/Materials Resources | -11 -10 -9 ----------- Run | Jun Mat Mat Matter Collected 615 | 273 . 342 Remotely . | . . . Salvage Created 1113 | 100 . 1013 Parts 85 | 6 . 79 Haulers Intercepted 2 | . . 2 Recyclers Shooed 2 | 1 . 1 Parts Field Recycled . | . . . Retrieved Matter . | . . . Parts Self-Destructed . | . . . Prevented . | . . . Kills | -11 -10 -9 ------- Run | Jun Mat Mat Combat Hostiles Destroyed 24 | . . 24 Melee 1 | . . 1 Guns 21 | . . 21 AOE 2 | . . 2 Classes Destroyed 9 | 1 . 8 Tunneler 4 | 4 . . Hauler 2 | . . 2 Recycler 1 | . . 1 Operator 2 | . . 2 Watcher 1 | . . 1 Swarmer 12 | . . 12 Grunt 4 | . . 4 Duelist 1 | . . 1 Sentry 7 | . . 7 Best Kill Streak 7 | 2 . 7 Combat Bots Only 4 | . . 4 Max Kills in Single Turn 2 | 1 . 2 Gunslinging 1 | . . 1 Exploded 1 | . . 1 Melee 1 | . . 1 Uniques/NPCs Destroyed . | . . . Combat | -11 -10 -9 -------- Run | Jun Mat Mat Damage Taken 1615 | . . 1615 Core 401 | . . 401 Absorbed by Shields . | . . . Redirected to Shielding 20 | . . 20 Core Remaining (%) 100 | 100 100 . Volleys Fired 85 | 17 . 68 Largest 2 | 2 . 2 Hottest 90 | 60 . 90 Shots Fired 164 | 34 . 130 Gun 164 | 34 . 130 Cannon . | . . . Launcher . | . . . Special . | . . . Kinetic 95 | 27 . 68 Thermal . | . . . Explosive . | . . . Electromagnetic 69 | 7 . 62 Robot Hit Streak 14 | 6 . 14 Robot Miss Streak 4 | 3 . 4 Penetration Max . | . . . Secondary Targets 2 | . . 2 Max Gunslinging Chain 1 | . . 1 Shots Hit Robots 116 | 22 . 94 Core Hits 57 | 6 . 51 Critical Kills 1 | . . 1 Critical Parts Destroyed . | . . . Critical Strikes 1 | . . 1 Destroy 1 | . . 1 Melee Attacks 3 | . . 3 Impact . | . . . Slashing 3 | . . 3 Piercing . | . . . Sneak Attacks . | . . . Combat Hostiles . | . . . Follow-up Attacks . | . . . Damage Inflicted 1603 | 266 . 1337 Guns 1399 | 236 . 1163 Cannons . | . . . Explosions 181 | 30 . 151 Melee 23 | . . 23 Ramming . | . . . Kinetic 672 | 168 . 504 Thermal 181 | 30 . 151 Explosive . | . . . Electromagnetic 727 | 68 . 659 Impact . | . . . Slashing 23 | . . 23 Piercing . | . . . Highest Corruption 1 | . . 1 Average Corruption 1 | . . 1 Corruption Purged . | . . . Corruption Blocked . | . . . Effects 3 | . . 3 Message Errors 1 | . . 1 Heat Flow Errors 1 | . . 1 Data Loss (minor) 1 | . . 1 Overload Shots . | . . . Overflow Damage 18 | . . 18 Projectiles . | . . . Explosions 18 | . . 18 Melee . | . . . Knockbacks . | . . . Impact . | . . . Kinetic . | . . . Secondary . | . . . Self-Inflicted Damage 57 | . . 57 Shots 2 | . . 2 Rammed . | . . . Targets Rammed 1 | . . 1 Kicked . | . . . Crushed 1 | . . 1 Highest Temperature 145 | 20 . 145 Average Temperature 22 | 20 . 22 Received Heat Transfer 516 | . . 516 Siege Activations . | . . . Robots Corrupted . | . . . Combat Hostiles . | . . . Parts Fried 2 | . . 2 Impact Corruptions . | . . . Robots Melted . | . . . Combat Hostiles . | . . . Parts Melted 1 | . . 1 Heat Transferred 250 | 50 . 200 Parts Sabotaged . | . . . Parts Stolen . | . . . Parts Stripped . | . . . Power Chain Reactions 5 | 1 . 4 Missiles Intercepted . | . . . Alert | -11 -10 -9 ------- Run | Jun Mat Mat Peak Influence 467 | 20 28 467 Initial 13 | . 13 11 Average 205 | 8 15 282 Maximum Alert Level 2 | . . 2 Low Security (%) 49 | 100 100 29 Level 1 31 | . . 44 Level 2 18 | . . 26 Level 3 . | . . . Level 4 . | . . . Level 5 . | . . . High Security . | . . . Max Security . | . . . Squads Dispatched 3 | . . 3 Investigation 1 | . . 1 Extermination . | . . . Reinforcement 2 | . . 2 Assault . | . . . Garrison . | . . . Intercept . | . . . Searches Triggered . | . . . Construction Impeded . | . . . Haulers Reinforced . | . . . Active Scanning Responses . | . . . Cargo Convoy Interrupts . | . . . Stealth | -11 -10 -9 --------- Run | Jun Mat Mat Distress Signals 4 | . . 4 Communications Jammed . | . . . Distress Signals . | . . . Times Spotted 45 | . 3 42 Peak Tracking Total 7 | . 2 7 Tactical Retreats 2 | . . 2 Traps | -11 -10 -9 ------- Run | Jun Mat Mat Traps Triggered . | . . . Indirectly . | . . . Trap Hack Attempts . | . . . Triggered . | . . . Disarmed . | . . . Reprogrammed . | . . . Reused . | . . . Traps Extracted . | . . . Installed . | . . . Triggered 1 | . . 1 Machines | -11 -10 -9 ---------- Run | Jun Mat Mat Machines Disabled 1 | . . 1 Max in Single Turn 1 | . . 1 Machines Repaired . | . . . Machines Sabotaged . | . . . Overloaded Fab Kills . | . . . Hacking | -11 -10 -9 --------- Run | Jun Mat Mat Machines Accessed 3 | . . 3 Terminals 3 | . . 3 Fabricators . | . . . Repair Stations . | . . . Recycling Units . | . . . Scanalyzers . | . . . Garrison Access . | . . . Total Hacks 4 | . . 4 Successful 3 | . . 3 Failed 1 | . . 1 Catastrophic . | . . . Database Lockouts . | . . . Manual 4 | . . 4 Terminals 4 | . . 4 Fabricators . | . . . Repair Stations . | . . . Recycling Units . | . . . Scanalyzers . | . . . Garrison Access . | . . . Terminal Hacks . | . . . Fabricator Hacks . | . . . Repair Station Hacks . | . . . Recycling Unit Hacks . | . . . Scanalyzer . | . . . Garrison Access Hacks . | . . . Unauthorized Hacks 3 | . . 3 Terminals 3 | . . 3 Botnet 3 | . . 3 Fabricators . | . . . Repair Stations . | . . . Recycling Units . | . . . Scanalyzers . | . . . Garrison Access . | . . . Data Cores Recovered 1 | . . 1 Used . | . . . Hacking Detections 1 | . . 1 Full Trace Events . | . . . Feedback Events . | . . . Feedback Blocked . | . . . Robot Schematics Acquired . | . . . Robots Built . | . . . Authchips . | . . . Time . | . . . Total Robot Build Rating . | . . . Part Schematics Acquired . | . . . Parts Built . | . . . Authchips . | . . . Time . | . . . Total Part Build Rating . | . . . Parts Repaired . | . . . Time . | . . . Parts Recycled . | . . . Recycled Matter . | . . . Retrieved Matter . | . . . Retrieved Components . | . . . Parts Scanalyzed . | . . . Part Schematics Acquired . | . . . Parts Damaged . | . . . Bothacking | -11 -10 -9 ------------ Run | Jun Mat Mat Used RIF Installer . | . . . Robots Hacked . | . . . Non-combat . | . . . Combat . | . . . Robot Hacks Applied . | . . . Relay Couplers Released . | . . . Fabnet Peak Effective % . | . . . Robots Rewired . | . . . Allies Hacked . | . . . Hacks Repelled . | . . . Allies | -11 -10 -9 -------- Run | Jun Mat Mat Total Allies . | . . . Largest Group . | . . . Highest-Rated Group . | . . . Highest-Rated Ally . | . . . Total Orders . | . . . Ally Attacks . | . . . Total Damage . | . . . Kills . | . . . Allies Corrupted . | . . . Allies Melted . | . . . Intel | -11 -10 -9 ------- Run | Jun Mat Mat Robot Analysis Total . | . . . Derelict Logs Recovered . | . . . Drone Launches . | . . . Drone Recoveries . | . . . Exploration | -11 -10 -9 ------------- Run | Jun Mat Mat Turns Passed 1495 | 204 223 1068 Spaces Moved 959 | 133 220 606 Core 21 | 21 . . Treads 212 | . . 212 Legs . | . . . Wheels 726 | 112 220 394 Hover . | . . . Flight . | . . . Fastest Speed 50 | 50 100 100 Average Speed 118 | 103 100 128 Slowest Speed 240 | 200 100 240 Overloaded Moves . | . . . Propulsion Burnouts . | . . . Robots Hopped . | . . . Cave-ins Triggered . | . . . Exploration Rate (%) 34 | 8 41 54 Regions Visited 2 Branch Regions . Pre-discovered Areas . | . . . Known Exits Taken . | . . . Unknown Exits Taken 2 | 1 1 . Scrap Searched . | . . . Spaces Dug . | . . . Terrain Destroyed 18 | 3 . 15 Melee . | . . . Projectile . | . . . AOE 18 | 3 . 15 Terrain Rammed . | . . . Walls Destroyed . | . . . Machines Disabled . | . . . Actions | -11 -10 -9 --------- Run | Jun Mat Mat Total 1154 | 165 223 766 Wait 46 | . . 46 Move 957 | 132 219 606 Hop . | . . . Pick Up 25 | 9 3 13 Fast Attach 3 | 2 . 1 Attach 12 | 4 1 7 Detach . | . . . Swap 12 | 1 . 11 Drop 10 | . . 10 Fire 85 | 17 . 68 Melee 3 | . . 3 Ram . | . . . Kick . | . . . Crush 1 | . . 1 Escape Stasis . | . . . Rewire . | . . . Trap . | . . . Miscellaneous . | . . . Route ------- -11/Junkyard -10/Materials (discovered 2 exits: *Mat / [*Min]) -9/Materials (discovered 2 exits: *Mat x2) History --------- Turn | Location | Event 11 | -11/Junkyard | Discovered new exit (range 16) 205 | -11/Junkyard | Entered Materials 302 | -10/Materials | Build established: Mutant 339 | -10/Materials | Discovered new exit (range 12) 420 | -10/Materials | Discovered new exit (range 6) 428 | -10/Materials | Entered another Materials area 428 | -9/Materials | Evolved 2 slots: Utility x2 1102 | -9/Materials | Discovered new exit (range 16) 1258 | -9/Materials | Identified exit to Materials 1446 | -9/Materials | Discovered exit to Materials (range 11) 1447 | -9/Materials | Core integrity fell below 50% 1485 | -9/Materials | Core integrity fell below 20% 1496 | -9/Materials | Destroyed by G-34 Mercenary with Small Laser Last Messages --------------- 01440_ R-06 Scavenger collects Lgt. Treads. 01444_ Imp. EM Shotgun destroyed. 01444_ EM Pulse Gun destroyed. 01446_ EXIT=FOUND: MATERIALS 01458_ G-34 Mercenary system corruption misinterpreted. 01458_ G-34 Mercenary triggered Alarm Trap. 01458_ An alarm sounds. 01458_ ALERT: Alarm triggered, dispatching investigation squad. 01458_ S-10 Pest destroyed. 01465_ Lgt. Treads destroyed. 01465_ Assault Rifle destroyed. 01466_ L69G FAQXAO%1B5LTRLY|9= C, 01467_ S-10 Pest destroyed. 01471_ R-06 Scavenger collects Lgt. Assault Rifle. 01473_ Arm. Wheel destroyed. 01474_ R-06 Scavenger collects Lgt. Ion Engine. 01475_ Crushed G-34 Mercenary. 01475_ G-34 Mercenary destroyed. 01492_ Hvy. Ion Engine destroyed. 01494_ Hacking Suite destroyed. Map ----- +----------------------------------------------------+ | | | ?????????????????????????????????? | | ?????????????????????????????????? | | ?????????????????????????????????? | | ?????????????????????????????????? | | ?????????????????????????????????? | | ?????????????????????????????????? | | ?????????????????????????????????? | | ?????????????????????????????????? | | ?????????????????????????????????? | | ?????????????????????????????????? | | ?????????????????????????????????? | | ?????????????????????????????????? | | ?????????????????????????????????? | | ?????????????????????????????????? | | ?????????????????????????????????? | | ?????????????????????????????????? | | ?????????????????????????????????? | | ?????????????????????????????????? | | ?????????????????????????????????? | | ?????????????????????????????????? | | ????????????????????????#####????? | | ????????????????????????# #????? | | ????? #????????????????# < #????? | | ????? #???????????###### #????? | | ????? #?????????###""""#@ #????? | | ????? #?????????# #????? | | ???? #?????##??# #????? | | ???? #?????? ?# sggg #????? | | ???? #??????? ?# ;#;######???? | | ???? #### ?? # g # % #???? | | ???? / # #% #???? | | ???? #?# + r%+ #???? | | ???? #?# # # #???? | | #### #?###?#### # #???? | | ! #????????#% #########???? | | #????????# #??#######??? | | #????????# #? #??? | | [[ #?" ????# #? #??? | | [[ #?Y ""??# # #??? | | ####"" """ # # #??? | | #??# + + #??? | | ] #??# """ # # #??? | | # #??#? ""??# # #??? | | # #???? ????# #? #??? | | # #???????????# #? #??? | | #+##+###?????????# #??#######??? | | #?????????# #???????????? | | #?????????# #######?????? | | #?????????# # ?????? | +----------------------------------------------------+ Best States ------------- Heat Dissipation 38 Energy Generation 14 Energy Capacity 280 Matter Stores 300 Matter Capacity 300 Sight Range 16 Terrain Scan Density 10 Armor Coverage 150 Core Shielding 20 Weapon Shielding 33 Evasion (%) 50 Recoil Reduction 1 Offensive Hacking 10 Item Schematics ----------------- None Robot Schematics ------------------ None Fabricated ------------ Nothing Alien Tech Used ----------------- None Achievements -------------- None Challenges ------------ None Game ------ Seed DerelictSchematicCharger Manual? 0 Play Time 00:12:12 Cumulative 68.9 hours Start 2023.04.06 @ 20:05:36 End 2023.04.06 @ 20:16:56 Sessions 1 Manual Loads 0 Difficulty Rogue Special Mode None Game No. 80 Rogue 80 Adventurer 0 Explorer 0 Win Type - Total 0 Types 0/0/0/0/0/0/0/0/0 Lore% 38 Gallery% 49 Achievement% 42 Wizard Run 0 Options --------- ASCII 0 Keyboard 0 Movement Arrows Keybinds 0 Fullscreen 2 Font 18/SmallcapsGlow Map View 76x50 Tactical HUD 1 Map Filters NONE Filters NONE Steam 1 RUN: 6e889650-2f9a-424b-a798-5c0c95150f61